[Event "Polish Ekstraliga 2024"]
[Site "Walbrzych"]
[Date "2024.10.08"]
[Round "2.9"]
[White "Kempinski, Robert"]
[Black "Bartel, Mateusz"]
[Result "0-1"]
[ECO "E15"]
[WhiteElo "2566"]
[BlackElo "2608"]
[Annotator "TA"]
[PlyCount "112"]
[EventDate "2024.10.05"]
[EventType "team-tourn"]
[EventCountry "POL"]
[SourceTitle "playchess.com"]
[Source "ChessBase"]
[SourceQuality "1"]
[WhiteTeam "Legnica"]
[BlackTeam "Polonia Wroclaw"]
[TimeControl "40/5400+30:1800+30"]

{[%evp 57,112,-378,-459,-459,-468,-460,-478,-480,-455,-735,-658,-659,-623,-643,-631,-604,-473,-531,-530,-530,-485,-460,-310,-461,-437,-478,-246,-270,-267,-249,-100,-1051,-1024,-29936,-29941,-29945,-29941,-5609,-1541,-1687,-962,-1299,-1304,-1097,-1058,-1020,-975,-29968,-29969,-5678,-4914,-29992,-29983,-29983,-29984,-29984,-29985]} 1. d4 {[%emt 0:00:05]} Nf6 {[%emt 0:00:06]} 2. Nf3 {[%emt 0:00:14]} e6 {[%emt 0:00:08]} 3. c4 {[%emt 0:00:14]} b6 {[%emt 0:00:06]} 4. g3 {[%emt 0:04:12]} Bb4+ {[%emt 0:01:29]} 5. Bd2 {[%emt 0:00:16]} Bxd2+ {[%emt 0:00:08]} 6. Qxd2 {[%emt 0:00:45]} Ba6 {[%emt 0:00:07]} 7. Na3 {[%emt 0:09:05]} O-O {[%emt 0:00:55]} 8. Bg2 {[%emt 0:00:31] E15: Queen's Indian: 4 g3 sidelines, 4 g3 Ba6 and 4 g3 Bb7 early deviations.} Bb7 {[%emt 0:00:07]} 9. O-O {[%emt 0:01:27]} d6 {[%emt 0:00:04]} 10. Rfd1 {[%emt 0:01:52]} Nbd7 {[%emt 0:00:07]} 11. Nb5 {[%emt 0:01:26]} a6 {[%emt 0:03:07]} 12. Nc3 {[%emt 0:00:09]} Ne4 {[%emt 0:00:10]} 13. Nxe4 {[%emt 0:00:39]} Bxe4 {[%emt 0:03:45]} 14. d5 $146 {[%emt 0:03:35]} ({Predecessor:} 14. Rac1 Nf6 15. Qe3 Qb8 16. Ne1 Bxg2 17. Nxg2 Qb7 18. d5 exd5 19. cxd5 Nxd5 20. Qf3 {½-½ Jussupow,A (2555)-Kuzmin,G (2545) Minsk International 1982 (11)}) 14... Nf6 {[%emt 0:16:26]} 15. Nd4 {[%emt 0:00:30]} Bxg2 {[%emt 0:00:30]} 16. Kxg2 Qd7 17. Nc6 {[%emt 0:06:56]} Rae8 {[%emt 0:02:17]} 18. Qc2 {[%emt 0:07:16]} h5 {[%emt 0:03:48]} 19. f3 {[%emt 0:11:29]} e5 {[%emt 0:03:49]} 20. b4 {[%emt 0:12:21]} Nh7 {[%emt 0:00:40]} 21. a4 {[%emt 0:00:23]} f5 {[%emt 0:02:42]} 22. e3 {[%emt 0:09:57]} Ng5 {[%emt 0:16:04]} 23. f4 {[%emt 0:03:29]} Ne4 {[%emt 0:00:08]} 24. fxe5 {[%emt 0:05:02]} dxe5 {[%emt 0:00:15]} 25. a5 {[%emt 0:01:44]} bxa5 {[%emt 0:06:53]} 26. Rxa5 {[%emt 0:00:15]} Nf6 {[%emt 0:05:31]} 27. Qc3 {[%emt 0:11:54]} Ng4 {[%emt 0:02:19]} 28. Re1 {[%emt 0:06:25]} f4 {[%emt 0:07:47]} 29. exf4 {[%emt 0:00:03]} (29. Rxa6 f3+) 29... exf4 {[%emt 0:00:27]} 30. gxf4 {[%emt 0:00:04]} (30. Rxe8 $2 f3+ 31. Qxf3 Qxe8) 30... Rxf4 {[%emt 0:00:33]} 31. Raa1 {[%emt 0:00:23]} Rfe4 {[%emt 0:11:10]} (31... Rf2+ $2 32. Kg1 $17) 32. Rxe4 {[%emt 0:00:25]} Rxe4 {[%emt 0:00:02]} 33. Qg3 {[%emt 0:03:15]} (33. Qf3 $142 Qd6 (33... Rxc4 34. Re1 $17) 34. Qg3 (34. Qxe4 $2 Qxh2+ 35. Kf3 Qf2#)) 33... h4 {[%emt 0:06:21]} 34. Qf3 {[%emt 0:00:17]} Re3 {[%emt 0:00:15]} (34... Rxc4 35. Re1 Nf6 (35... Rc2+ 36. Re2 $11) 36. Ne7+ Kf7 37. Re6 $17) 35. Qf4 {[%emt 0:00:21]} h3+ {[%emt 0:00:08]} 36. Kg1 {[%emt 0:00:57]} Re2 {[%emt 0:01:54]} 37. Rf1 {[%emt 0:00:09]} Rg2+ {[%emt 0:02:27]} (37... Rxh2 38. Qf8+ Kh7 39. Ne7 Rg2+ 40. Kh1 $11) (37... Nxh2 38. Rf2 Rxf2 39. Qxf2 $11) 38. Kh1 {[%emt 0:00:01]} Rxh2+ {[%emt 0:00:06]} 39. Kg1 {[%emt 0:00:02]} Rg2+ {[%emt 0:02:47]} 40. Kh1 {[%emt 0:00:00]} Qe8 {[%emt 0:00:00]} 41. c5 {[%emt 0:11:59]} Nf6 {[%emt 0:06:59]} (41... Rh2+ $142 42. Kg1 Re2 43. Qxg4 Rg2+ 44. Qxg2 hxg2 45. Kxg2 Qe2+ 46. Rf2 Qg4+ 47. Kh2 Kh7) 42. Qf5 $19 {[%emt 0:05:27]} Re2 {[%emt 0:03:19]} 43. Rg1 {[%emt 0:07:06] [#]} Qe3 {[%emt 0:11:14]} (43... Ne4 $1 $19 {[%cal Re4f2] White must now prevent ...Nf2+.} 44. Nd4 (44. Qe6+ Qxe6) 44... Nf2+ 45. Kh2 Ng4+ 46. Kxh3 Nf2+ (46... Qe3+ 47. Nf3 $17) 47. Kg3 (47. Kg2 $2 Nd1+ 48. Kg3 Re5 $19) 47... Re5 (47... Qe3+ 48. Nf3 $11) 48. Kxf2 (48. Qxf2 $2 Qg6+ 49. Kf3 Qd3+ 50. Kg4 Re4+ 51. Kg5 Rxd4 $19) 48... Rxf5+ 49. Nxf5 Qe4 50. Rxg7+ Kf8) 44. d6 $2 {[%emt 0:02:55][%mdl 8192]} (44. Qc8+ $17 Ne8 45. Qe6+ Qxe6 46. dxe6) 44... cxd6 $1 $19 {[%emt 0:04:04]} 45. cxd6 {[%emt 0:00:09] [#]} Rf2 $1 {[%emt 0:03:08]} 46. Ne7+ {[%emt 0:02:53]} Kf7 {[%emt 0:00:31]} 47. Nd5 {[%emt 0:03:27]} Qd2 {[%emt 0:02:19]} (47... Rxf5 48. Nxe3 Re5 49. Rg3 $17) (47... Qe2 $142 48. Qxh3 Qe4+ (48... Nxd5 49. Qd7+ Ne7 50. Qxe7+ Qxe7 51. dxe7 $11) 49. Rg2 Qxd5 (49... Nxd5 50. Qd7+ Ne7 51. Qxe7+ Qxe7 52. Rxf2+ $19)) 48. Qg6+ $19 {[%emt 0:01:48]} Ke6 {[%emt 0:00:06]} 49. Nc7+ {[%emt 0:00:14]} Kxd6 {[%emt 0:00:02]} 50. Qg3+ {[%emt 0:00:37]} Kc6 {[%emt 0:00:12]} 51. Qe5 {[%emt 0:00:39]} Nd7 {[%emt 0:01:53]} ({Not} 51... Qxb4 52. Qe6+ Kb7 (52... Kxc7 53. Rc1+) 53. Qxa6+ Kb8 54. Qa8+ Kxc7 55. Rc1+ (55. Rxg7+ Nd7 $11) 55... Kd7 56. Qc8+ Ke7 57. Rc7+ (57. Qxh3 Qe4+ 58. Kg1 Rf3) 57... Kd6 58. Qf8+ (58. Rxg7 $2 Qe4+ 59. Kg1 Qe1#) 58... Kxc7 59. Qxb4 $11) 52. b5+ {[%emt 0:00:33]} axb5 {[%emt 0:00:07]} 53. Rg6+ {[%emt 0:00:20]} Kb7 {[%emt 0:04:51]} 54. Qe4+ {[%emt 0:00:38]} Kxc7 {[%emt 0:00:30]} 55. Qc6+ {[%emt 0:00:35]} Kd8 {[%emt 0:00:12]} 56. Qa8+ {[%emt 0:00:09]} Ke7 {[%emt 0:00:04]} 0-1

[Event "Polish Ekstraliga 2024"]
[Site "Walbrzych"]
[Date "2024.10.08"]
[Round "2.10"]
[White "Mastrovasilis, Dimitrios"]
[Black "Heberla, Bartlomiej"]
[Result "1-0"]
[ECO "C45"]
[WhiteElo "2532"]
[BlackElo "2501"]
[Annotator "TA"]
[PlyCount "131"]
[EventDate "2024.10.05"]
[EventType "team-tourn"]
[EventCountry "POL"]
[SourceTitle "playchess.com"]
[Source "ChessBase"]
[SourceQuality "1"]
[WhiteTeam "Polonia Wroclaw"]
[BlackTeam "Legnica"]
[TimeControl "40/5400+30:1800+30"]

{[%evp 57,131,54,82,75,81,79,77,80,75,75,119,0,0,0,0,0,0,0,56,56,56,56,56,56,56,56,56,56,56,56,56,56,116,116,124,129,148,152,137,112,137,130,142,128,141,137,230,0,0,0,189,189,415,383,413,413,410,396,423,360,403,61,66,66,81,54,73,72,66,66,214,221,270,262,29986,29987]} 1. e4 {[%emt 0:00:16]} e5 {[%emt 0:00:13]} 2. Nf3 {[%emt 0:00:07]} Nc6 {[%emt 0:00:09]} 3. d4 {[%emt 0:00:17]} exd4 {[%emt 0:00:05]} 4. Nxd4 {[%emt 0:00:09]} Qf6 {[%emt 0:00:19]} 5. Nb5 {[%emt 0:00:43]} Bc5 {[%emt 0:04:09]} 6. Qe2 {[%emt 0:00:24]} Bb6 {[%emt 0:07:11]} 7. N1c3 {[%emt 0:00:24]} Nge7 {[%emt 0:00:22]} 8. Be3 {[%emt 0:00:34]} Ba5 {[%emt 0:02:59]} 9. Qf3 {[%emt 0:00:39]} Qg6 {[%emt 0:04:53]} 10. a3 {[%emt 0:02:18]} a6 {[%emt 0:05:44]} 11. b4 {[%emt 0:00:19]} axb5 {[%emt 0:00:04]} 12. bxa5 {[%emt 0:00:12]} O-O {[%emt 0:02:45]} 13. Bxb5 {[%emt 0:01:25]} f5 {[%emt 0:27:23]} 14. O-O {[%emt 0:36:18]} Rxa5 {[%emt 0:07:02]} 15. a4 {[%emt 0:06:26]} d6 {[%emt 0:00:35]} 16. Qg3 {[%emt 0:11:16]} Qf7 {[%emt 0:14:11]} 17. f4 {[%emt 0:10:20]} Be6 {[%emt 0:02:52]} 18. Rfe1 {[%emt 0:10:07]} h6 {[%emt 0:02:10]} 19. Rab1 {[%emt 0:02:20]} b6 {[%emt 0:07:11]} 20. h3 {[%emt 0:01:35]} Raa8 {[%emt 0:02:22]} 21. Rbd1 {[%emt 0:02:37]} Bc4 {[%emt 0:04:53]} 22. Nd5 {[%emt 0:05:40]} Bxb5 {[%emt 0:00:41]} 23. axb5 {[%emt 0:00:03]} Nxd5 {[%emt 0:00:08]} 24. exd5 {[%emt 0:00:16]} Ne7 {[%emt 0:00:50]} 25. Bd4 {[%emt 0:01:37]} Nxd5 {[%emt 0:02:19]} 26. Bxg7 {[%emt 0:00:45]} Qxg7 {[%emt 0:00:01]} 27. Qb3 {[%emt 0:00:48]} Kh8 {[%emt 0:00:55]} 28. Qxd5 {[%emt 0:00:22]} Ra4 {[%emt 0:01:11]} 29. c4 {[%emt 0:01:43]} Ra3 {[%emt 0:00:40]} 30. Rd3 {[%emt 0:01:12]} Rxd3 {[%emt 0:00:19]} 31. Qxd3 {[%emt 0:00:03]} Rg8 {[%emt 0:00:26]} 32. Re2 {[%emt 0:00:46]} (32. Qxf5 $2 Qxg2#) (32. Qd2 {keeps more tension.} Qg3 33. Re6 Kh7 34. Re3) 32... Qf7 {[%emt 0:00:25]} 33. Kh2 {[%emt 0:00:40]} h5 {[%emt 0:00:14]} 34. h4 {[%emt 0:02:29]} (34. Re3 $16) 34... Qf6 $11 {[%emt 0:00:25]} 35. g3 {[%emt 0:00:09]} Qf7 {[%emt 0:00:59]} 36. Kh3 {[%emt 0:01:42]} Kh7 {[%emt 0:00:42]} 37. Re3 {[%emt 0:00:30]} Qg6 {[%emt 0:00:37]} (37... Kg6 $11) 38. Kh2 {[%emt 0:00:39]} Rg7 {[%emt 0:00:21]} 39. Qe2 {[%emt 0:00:48]} Kg8 {[%emt 0:00:32]} 40. Qf3 {[%emt 0:00:00]} Kh7 {[%emt 0:00:00]} 41. Qd5 {[%emt 0:04:45]} Rf7 {[%emt 0:10:56]} 42. Kg2 {[%emt 0:05:55]} Qf6 {[%emt 0:01:50]} 43. Re6 {[%emt 0:06:44]} Qb2+ $1 {[%emt 0:00:20]} 44. Kh3 {[%emt 0:00:30]} Kg7 {[%emt 0:11:14]} (44... Qa1 $14) 45. Qd1 $1 $16 {[%emt 0:02:15]} Qf2 {[%emt 0:00:09]} 46. Re8 {[%emt 0:02:08]} (46. Qxh5 $6 Qf1+ 47. Kh2 Qf2+ 48. Kh3 Qf1+ 49. Kh2 Qf2+ 50. Kh3 $11) 46... Rf6 {[%emt 0:04:58]} 47. Re7+ $1 {[%emt 0:01:18]} (47. Qxh5 $6 Qf1+ 48. Kh2 Qf2+ 49. Kh1 Qf1+ 50. Kh2 Qf2+ 51. Kh1 Qf1+ 52. Kh2 $11) 47... Kh6 {[%emt 0:00:21]} 48. Qa1 {[%emt 0:01:42]} (48. Rxc7 $6 Rg6 49. Qd3 Qg1 $11) 48... Kg6 {[%emt 0:00:04]} 49. Rxc7 {[%emt 0:00:54]} Qe2 {[%emt 0:00:09]} 50. Qa8 {[%emt 0:03:41]} Qg4+ {[%emt 0:00:31]} 51. Kh2 {[%emt 0:00:09]} Qe2+ {[%emt 0:00:06]} (51... Rf8 $16 {was necessary.} 52. Qc6 (52. Qxf8 Qe2+ 53. Kg1 Qe1+ 54. Kg2 Qe2+ 55. Kg1 Qe3+ 56. Kg2 Qe2+ 57. Kg1 $11) 52... Qe2+ 53. Qg2 Qd3) 52. Kh3 $2 {[%emt 0:00:03]} (52. Qg2 $18 Qd3 53. Re7) 52... Qg4+ $11 {[%emt 0:00:08]} 53. Kh2 $2 {[%emt 0:00:02]} (53. Kg2 $11 Qe2+ 54. Kh3) 53... Qe2+ $18 {[%emt 0:00:06]} 54. Qg2 {[%emt 0:00:22]} Qe1 $2 {[%emt 0:04:50]} (54... Qd3) 55. Qb2 $1 $18 {[%emt 0:00:55]} Rf7 {[%emt 0:01:33]} 56. Rc6 {[%emt 0:05:53]} Rf6 {[%emt 0:00:13] [#]} 57. Rc8 $1 {[%emt 0:00:37]} (57. Rxb6 Re6 58. Kh3 (58. Qg2 $2 Re2 $19) 58... Qh1+ 59. Qh2 Qf3 $19) 57... Qd1 {[%emt 0:00:53]} 58. Re8 {[%emt 0:01:55]} Kf7 {[%emt 0:00:50] [#]} 59. Re2 $2 {[%emt 0:00:28]} (59. Rh8 $1 $18 {[%cal Oc4c5] Black must now prevent c5!} Qf3 60. Rh7+ Kg6 61. Rh8 (61. Rh6+ Kxh6 62. Qxf6+ Kh7 $18)) 59... Re6 $14 {[%emt 0:00:12]} 60. Rd2 {[%emt 0:00:14]} Qf1 {[%emt 0:00:09]} 61. Qc2 {[%emt 0:00:26]} Re4 {[%emt 0:01:02]} 62. Rf2 {[%emt 0:00:43]} (62. Rxd6 $2 {loses.} Re2+ $19 (62... Qxc4 63. Qxc4+ Rxc4 64. Kg1 $18) (62... Qxc4 $2 63. Qxc4+ Rxc4 64. Kg2 $18)) 62... Qxc4 {[%emt 0:00:15]} 63. Qd1 {[%emt 0:00:02]} Kg6 {[%emt 0:00:26]} ({Better is} 63... Qxb5 $14 64. Qxh5+ (64. Qxd6 Re2 $11) 64... Kg7) 64. Qxd6+ $18 {[%emt 0:00:23]} Qe6 {[%emt 0:00:36]} 65. Qd8 {[%emt 0:00:47]} Re2 $2 {[%emt 0:00:15]} (65... Qf6 $18 66. Qg8+ Qg7) 66. Qg5+ {[%emt 0:00:04]} 1-0

[Event "Polish Ekstraliga 2024"]
[Site "Walbrzych"]
[Date "2024.10.08"]
[Round "2.11"]
[White "Bobras, Piotr"]
[Black "Gumularz, Szymon"]
[Result "0-1"]
[ECO "C79"]
[WhiteElo "2428"]
[BlackElo "2559"]
[Annotator "TA"]
[PlyCount "120"]
[EventDate "2024.10.05"]
[EventType "team-tourn"]
[EventCountry "POL"]
[SourceTitle "playchess.com"]
[Source "ChessBase"]
[SourceQuality "1"]
[WhiteTeam "Legnica"]
[BlackTeam "Polonia Wroclaw"]
[TimeControl "40/5400+30:1800+30"]

{[%evp 15,120,44,38,8,8,13,11,4,10,4,9,0,9,0,0,0,0,0,0,-21,-12,-5,-3,-22,-24,-20,0,0,0,0,0,-14,0,-45,-35,-41,-25,-44,-48,-45,-53,-47,-39,-111,-116,-109,-103,-112,-110,-122,-134,-139,-119,-121,-74,-74,-39,-85,-70,-98,-92,-95,-93,-106,-98,-96,-108,-100,-116,-153,-114,-125,-121,-121,-120,-128,-133,-195,-169,-193,-185,-266,-271,-270,-268,-233,-221,-496,-512,-552,-312,-557,-573,-566,-525,-678,-677,-675,-697,-864,-837,-808,-668,-814,-839,-779,-773]} 1. e4 {[%emt 0:00:04]} e5 {[%emt 0:00:06]} 2. Nf3 {[%emt 0:01:33]} Nc6 {[%emt 0:00:06]} 3. Bb5 {[%emt 0:01:51]} a6 {[%emt 0:00:07]} 4. Ba4 {[%emt 0:00:03]} Nf6 {[%emt 0:00:08]} 5. O-O {[%emt 0:00:04]} d6 {[%emt 0:00:08]} 6. Bxc6+ {[%emt 0:05:13]} bxc6 {[%emt 0:00:15][%cal Bb7c6,Bc6c5][%mdl 32]} 7. d4 {[%emt 0:00:03]} exd4 {[%emt 0:00:23]} 8. Nxd4 {[%emt 0:00:43]} c5 {[%emt 0:00:24]} 9. Ne2 {[%emt 0:04:14]} Bb7 {[%emt 0:05:33]} 10. f3 {[%emt 0:03:16]} g6 {[%emt 0:01:13]} 11. c4 {[%emt 0:01:45] The position is equal.} Bg7 {[%emt 0:00:11]} 12. Nbc3 {[%emt 0:01:11]} (12. Bg5 {is more complex.} h6 13. Bh4 O-O 14. Nbc3) 12... O-O {[%emt 0:00:11]} 13. b3 {[%emt 0:09:40]} Nd7 {[%emt 0:03:26]} 14. Bb2 {[%emt 0:02:11]} f5 {[%emt 0:03:46]} 15. exf5 {[%emt 0:00:30]} Rxf5 {[%emt 0:00:30]} 16. Ng3 {[%emt 0:08:32]} Rf7 17. Qd2 {[%emt 0:00:30]} Bd4+ {[%emt 0:07:48] A strong pair of Bishops.} 18. Kh1 {[%emt 0:00:05]} Qh4 {[%emt 0:00:08]} 19. Nce4 {[%emt 0:08:51]} Bxb2 {[%emt 0:00:16]} 20. Qxb2 {[%emt 0:00:03]} Raf8 {[%emt 0:00:10] Strongly threatening ...Bxe4.} 21. Rae1 {[%emt 0:02:59]} g5 {[%emt 0:18:59]} 22. Qd2 {[%emt 0:03:29]} h6 {[%emt 0:00:18]} 23. Nc3 {[%emt 0:06:29]} Ne5 {[%emt 0:03:56]} 24. Nd5 {[%emt 0:15:46]} Qd4 {[%emt 0:01:32]} 25. Qc2 {[%emt 0:02:47][%cal Og3f5] And now Nf5! would win.} Bxd5 {[%emt 0:08:45]} 26. Rd1 {[%emt 0:00:06] [#]} Qh4 {[%emt 0:01:27]} 27. Rxd5 {[%emt 0:11:31]} g4 {[%emt 0:03:31][%cal Rg4f3]} 28. Qe4 {[%emt 0:08:25]} Rf4 {[%emt 0:00:34]} 29. Qe2 {[%emt 0:00:35]} (29. Rxe5 $1 $15 Rxe4 (29... dxe5 30. Qg6+ Kh8 31. Nh5 $11) 30. Rxe4) 29... gxf3 $17 {[%emt 0:03:54]} 30. gxf3 {[%emt 0:00:07][%cal Ob3b4]} Kh8 {[%emt 0:01:34] Black is more active.} (30... Nxf3 31. Rh5 Qf6 32. Qe3) (30... Rxf3 31. Rxf3 Nxf3 (31... Rxf3 $2 {is the wrong capture.} 32. Rxe5 Rf8 33. Re7 $18) 32. Nf5 $15) 31. Rxe5 {[%emt 0:02:33]} dxe5 {[%emt 0:00:04]} 32. Qxe5+ {[%emt 0:00:07]} Qf6 {[%emt 0:03:02]} 33. Qxf6+ {[%emt 0:00:58]} R8xf6 {[%emt 0:01:16][%mdl 4096] Endgame. KRR-KRN} 34. Kg2 {[%emt 0:00:05]} Rg6 {[%emt 0:01:17]} (34... a5 $142 35. Nh5 Rg6+ 36. Kh3 Rd4) 35. Re1 {[%emt 0:01:06]} h5 {[%emt 0:04:55]} 36. Re8+ {[%emt 0:00:15]} (36. Kf2 $15 {was preferrable.}) 36... Kh7 {[%emt 0:02:38] ...h4 would now be deadly.} 37. Re7+ {[%emt 0:00:12]} Kh6 {[%emt 0:01:37]} 38. Kf2 {[%emt 0:00:10][%cal Oe7e5]} Rgf6 {[%emt 0:00:41]} 39. Re3 {[%emt 0:01:23]} Rd4 {[%emt 0:03:40]} 40. Ne4 {[%emt 0:00:00]} Re6 {[%emt 0:00:00]} 41. Re1 {[%emt 0:09:11]} a5 {[%emt 0:14:14]} 42. a4 {[%emt 0:12:00]} Rd8 {[%emt 0:04:42]} 43. h4 {[%emt 0:01:33]} Rf8 {[%emt 0:02:44]} 44. Kg3 {[%emt 0:04:50]} Rb8 {[%emt 0:05:14]} 45. Rb1 {[%emt 0:04:15]} Rd8 {[%emt 0:10:27]} 46. Kf4 {[%emt 0:01:25] [#]} (46. Kf2 $17) 46... Rd3 $1 $19 {[%emt 0:01:30]} 47. Rb2 {[%emt 0:00:49]} Rb6 {[%emt 0:04:09]} 48. Ng5 {[%emt 0:00:15]} (48. Rg2 $142) 48... Rdxb3 {[%emt 0:04:53]} ({Worse is} 48... Rbxb3 49. Re2 $11) 49. Re2 {[%emt 0:00:41]} Rf6+ {[%emt 0:02:28]} 50. Ke5 {[%emt 0:00:03]} Rf8 {[%emt 0:00:25]} 51. f4 {[%emt 0:00:18]} (51. Kd5 {only move.}) 51... Kg6 {[%emt 0:00:43]} 52. Ne6 {[%emt 0:01:12]} Rf5+ {[%emt 0:00:16]} 53. Ke4 {[%emt 0:00:02]} Rc3 {[%emt 0:00:18] Black is clearly winning.} 54. Rg2+ {[%emt 0:00:56]} Kf6 {[%emt 0:00:03]} 55. Nxc7 {[%emt 0:00:26] Hoping for Nd5+.} Rxc4+ {[%emt 0:00:04]} 56. Ke3 {[%emt 0:00:12]} Rxa4 {[%emt 0:00:45]} 57. Rg8 {[%emt 0:00:54]} Kf7 {[%emt 0:00:09]} 58. Rd8 {[%emt 0:00:31]} Rd4 {[%emt 0:01:17]} 59. Rh8 {[%emt 0:00:19]} Rdxf4 {[%emt 0:00:31]} 60. Nb5 {[%emt 0:00:37]} Kg7 {[%emt 0:00:08] Weighted Error Value: White=0.32/Black=0.08 (flawless) .  Mistake:       	White=5     	Black=1      Inaccurate:     	White=4     	Black=1      OK:         	White=15    	Black=17     Best:        	White=4     	Black=9      Strong:       	---       	Black=1} 0-1

[Event "Polish Ekstraliga 2024"]
[Site "Walbrzych"]
[Date "2024.10.08"]
[Round "2.12"]
[White "Zawadzka, Jolanta"]
[Black "Sliwicka, Alicja"]
[Result "1/2-1/2"]
[ECO "B62"]
[WhiteElo "2349"]
[BlackElo "2371"]
[Annotator "RC"]
[PlyCount "52"]
[EventDate "2024.10.05"]
[EventType "team-tourn"]
[EventCountry "POL"]
[SourceTitle "playchess.com"]
[Source "ChessBase"]
[SourceQuality "1"]
[WhiteTeam "Polonia Wroclaw"]
[BlackTeam "Legnica"]
[TimeControl "40/5400+30:1800+30"]

1. e4 {[%emt 0:00:05]} c5 {[%emt 0:00:05]} 2. Nf3 {[%emt 0:00:05]} Nc6 {[%emt 0:00:06]} 3. d4 {[%emt 0:00:05]} cxd4 {[%emt 0:00:05]} 4. Nxd4 {[%emt 0:00:03]} Nf6 {[%emt 0:00:06]} 5. Nc3 {[%emt 0:00:05]} d6 {[%emt 0:00:12]} 6. Bg5 {[%emt 0:00:15]} e6 {[%emt 0:00:07]} 7. Qd3 {[%emt 0:00:08]} Bd7 {[%emt 0:00:22]} 8. O-O-O {[%emt 0:00:20]} a6 {[%emt 0:00:43]} 9. f4 {[%emt 0:00:12]} h6 {[%emt 0:03:34]} 10. Bh4 {[%emt 0:00:23]} Be7 {[%emt 0:00:57]} 11. Nf3 {[%emt 0:00:13]} Rc8 {[%emt 0:08:30]} 12. Kb1 {[%emt 0:02:27]} b5 {[%emt 0:01:44]} 13. e5 {[%emt 0:08:53]} dxe5 {[%emt 0:20:05]} 14. fxe5 {[%emt 0:00:30]} Nd5 {[%emt 0:00:30]} 15. Bxe7 {[%emt 0:16:26]} Qxe7 16. Nxd5 exd5 {[%emt 0:09:23]} 17. Qxd5 {[%emt 0:01:00]} Bf5 {[%emt 0:04:01]} 18. Bd3 {[%emt 0:03:56]} Nb4 {[%emt 0:02:35]} 19. Qd6 {[%emt 0:03:29]} Nxd3 {[%emt 0:02:11]} 20. cxd3 {[%emt 0:01:20]} Qxd6 {[%emt 0:01:15]} 21. exd6 {[%emt 0:00:04]} O-O {[%emt 0:01:26]} 22. Nd4 {[%emt 0:24:25]} Bg6 {[%emt 0:13:20]} 23. Rhf1 {[%emt 0:07:19]} Rfd8 {[%emt 0:02:09]} 24. Nf5 {[%emt 0:00:27]} Bxf5 {[%emt 0:00:38]} 25. Rxf5 {[%emt 0:00:04]} Rxd6 {[%emt 0:00:10]} 26. Rf3 {[%emt 0:00:26]} Kf8 {[%emt 0:05:49]} 1/2-1/2

[Event "Polish Ekstraliga 2024"]
[Site "Walbrzych"]
[Date "2024.10.08"]
[Round "2.13"]
[White "Bluebaum, Matthias"]
[Black "Janik, Igor"]
[Result "1-0"]
[ECO "E15"]
[WhiteElo "2646"]
[BlackElo "2501"]
[Annotator "TA"]
[PlyCount "59"]
[EventDate "2024.10.05"]
[EventType "team-tourn"]
[EventCountry "POL"]
[SourceTitle "playchess.com"]
[Source "ChessBase"]
[SourceQuality "1"]
[WhiteTeam "Raciborz"]
[BlackTeam "Gorzow Wlkp"]
[TimeControl "40/5400+30:1800+30"]

{[%evp 19,59,14,18,8,8,8,10,10,8,-22,18,12,11,17,7,2,10,0,26,29,49,45,41,32,12,0,105,113,96,19,22,0,2,0,308,308,29991,115,29992,29993,29993,46]} 1. Nf3 {[%emt 0:00:04]} Nf6 {[%emt 0:00:28]} 2. c4 {[%emt 0:00:06]} b6 {[%emt 0:00:37]} 3. d4 {[%emt 0:00:36]} e6 {[%emt 0:00:06]} 4. g3 {[%emt 0:00:08]} Ba6 {[%emt 0:00:05]} 5. b3 {[%emt 0:00:35]} Bb4+ {[%emt 0:00:16]} 6. Bd2 {[%emt 0:00:05]} Be7 {[%emt 0:00:05]} 7. Bg2 {[%emt 0:00:46]} d5 {[%emt 0:00:19]} 8. cxd5 {[%emt 0:01:22]} exd5 {[%emt 0:00:06]} 9. O-O {[%emt 0:00:07]} O-O {[%emt 0:00:07]} 10. Nc3 {[%emt 0:00:02]} Re8 {[%emt 0:00:21]} 11. Rc1 {[%emt 0:00:49]} Nbd7 {[%emt 0:02:17]} 12. Ne5 {[%emt 0:00:33]} Bb7 {[%emt 0:00:10] Prevents Nc6} 13. Rc2 {[%emt 0:00:42] The position is equal.} c6 {[%emt 0:03:30]} 14. Bc1 {[%emt 0:05:36]} Bd6 {[%emt 0:10:23]} 15. f4 {[%emt 0:13:52]} c5 16. e3 Rc8 {[%emt 0:14:14]} 17. Bh3 {[%emt 0:07:30]} cxd4 {[%emt 0:11:59]} 18. exd4 {[%emt 0:00:08]} Bb4 {[%emt 0:03:26]} 19. Bb2 {[%emt 0:06:10]} Bxc3 {[%emt 0:06:13]} 20. Bxc3 {[%emt 0:02:21]} Rc7 {[%emt 0:02:12]} 21. Bb4 {[%emt 0:04:34]} Nxe5 {[%emt 0:19:52]} 22. fxe5 {[%emt 0:01:56]} Ne4 {[%emt 0:02:30]} (22... Rxc2 $1 $11 23. Qxc2 Ne4) 23. Rxc7 $16 {[%emt 0:04:06]} Qxc7 {[%emt 0:00:04] [#]} 24. Qc1 {[%emt 0:00:03]} (24. e6 $1 $16 {[%cal Re6f7]} Ng5 (24... fxe6 $2 {loses.} 25. Bxe6+ Kh8 26. Rf7 $18) 25. exf7+ Nxf7 26. Qf3) 24... Qd8 $11 {[%emt 0:01:31]} 25. e6 {[%emt 0:03:24]} fxe6 {[%emt 0:03:43] [#]} 26. Bxe6+ $1 $40 {[%emt 0:00:38][%mdl 128] Black needs to defend precisely.} Rxe6 {[%emt 0:12:04] [#]} 27. Qc7 $1 {[%emt 0:00:56]} Re8 {[%emt 0:00:35]} (27... Qe8 $18) 28. Qf7+ {[%emt 0:00:51]} Kh8 {[%emt 0:00:04] ...Bc6 would now be deadly.} 29. Bf8 $1 {[%emt 0:00:04][%csl Gf8][%cal Rf7g7]} ({Not} 29. Qxb7 a5 30. Be1 h6 $11) 29... Qg5 {[%emt 0:00:27]} 30. Bxg7+ {[%emt 0:00:05] Weighted Error Value: White=0.09 (flawless) /Black=0.36.  Loses game:     	---       	Black=2      Mistake:       	White=1     	Black=2      Inaccurate:     	White=1     	Black=2      OK:         	White=6     	Black=6      Best:        	White=1     	Black=1      Strong:       	White=1     	---} ({Weaker is} 30. Qxe8 Qe3+ 31. Kg2 Qe2+ 32. Kg1 Qe3+ 33. Kg2 Qe2+ 34. Kg1 Qe3+ $11) 1-0